Cogmind - Beta 14 @@@ ROGUE MODE // 2024.08.17 @ 21:34:43 Player: Cereal Killer Result: Destroyed by S-10 Pest with Light Assault Rifle Performance ------------- Evolutions (0) 0 Regions Visited (2) 400 Robots Destroyed (16) 80 Value Destroyed (387) 387 Prototype IDs (2) 40 Alien Tech Used (0) 0 Bonus (0) 0 TOTAL SCORE: 907 Bonus ------- None Cogmind --------- Core Integrity 0/250 Matter 300/300 Energy 246/250 System Corruption 0% Temperature Warm (100) Movement Rolling (200) Ox8 Location -10/Mines Parts ------- > --- POWER (1) -------- Ion Engine > --- PROPULSION (2) --- Wheel > --- UTILITY (2) ------ Huge Storage Unit Structural Scanner > --- WEAPON (2) ------- Beam Cannon Light Assault Rifle > --- INVENTORY (25) --- Light Ion Engine Light Treads Light Treads Wheel Wheel Signal Interpreter Improved Terrain Scanner Targeting Computer Utility Shielding Light Assault Rifle Mining Laser Mining Laser Hammer Peak State ------------ > --- POWER ------------ Light Ion Engine > --- PROPULSION ------- Wheel Compact Wheel > --- UTILITY ---------- Small Storage Unit Improved Terrain Scanner > --- WEAPON ----------- Medium Laser Light Assault Rifle > --- INVENTORY -------- Ion Engine Light Treads Light Treads Wheel Light Assault Rifle [Rating: 9] Favorites ----------- Power Ion Engine Engine Ion Engine Propulsion Wheel Treads Light Treads Wheel Wheel Utility Structural Scanner Device Structural Scanner Storage Huge Storage Unit Weapon Light Assault Rifle Energy Gun Medium Laser Energy Cannon Beam Cannon Ballistic Gun Light Assault Rifle Build | -11 -10 -10 ------- Run | Yrd Mat Min Slots Evolved . | . . . Power . | . . . Propulsion . | . . . Utility . | . . . Weapon . | . . . Parts Attached 17 | 7 10 . Power 3 | 1 2 . Engine 3 | 1 2 . Core . | . . . Reactor . | . . . Propulsion 6 | 2 4 . Treads 2 | . 2 . Leg . | . . . Wheel 4 | 2 2 . Hover . | . . . Flight . | . . . Utility 4 | 2 2 . Device 2 | 1 1 . Storage 2 | 1 1 . Processor . | . . . Hackware . | . . . Protection . | . . . Artifact . | . . . Weapon 4 | 2 2 . Energy Gun 2 | 1 1 . Energy Cannon 1 | . 1 . Ballistic Gun 1 | 1 . . Ballistic Cannon . | . . . Launcher . | . . . Special Weapon . | . . . Impact Weapon . | . . . Slashing Weapon . | . . . Piercing Weapon . | . . . Special Melee Weapon . | . . . Unidentified Prototypes . | . . . Parts Lost 5 | . 4 1 Power 1 | . 1 . Propulsion 3 | . 2 1 Utility . | . . . Weapon 1 | . 1 . Highest Loss Streak 4 | . 4 1 To Critical Strikes . | . . . Average Slot Usage (%) 99 | . 99 100 Engine 13 | . 13 14 Treads 1 | . 1 . Wheel 26 | . 26 28 Device 14 | . 14 14 Storage 14 | . 14 14 Energy Gun 10 | . 10 . Energy Cannon 3 | . 3 14 Ballistic Gun 14 | . 14 14 Peak Build Rating 9 | 9 9 8 Average Rating 7 | 5 8 7 On Entrance 5 | . 9 8 Naked Turns . | . . . Heaviest Build 90 | 12 90 . Greatest Support 26 | 26 26 . Greatest Overweight (x) 4 | . 4 . Average Overweight (x) 1 | . 2 . Largest Inventory Capacity 25 | 8 25 25 Average Capacity 18 | 7 19 25 Most Carried 13 | 6 13 13 Average Carried 9 | 3 10 13 Final Capacity 25 | 8 25 25 Final Carried 13 | 6 13 13 Class Distribution -------------------- 100% | Mutant Dominant Class ---------------- Mutant | -10/Materials Mutant | -10/Mines Resources | -11 -10 -10 ----------- Run | Yrd Mat Min Matter Collected 400 | 246 154 . Remotely . | . . . Salvage Created 495 | 37 438 20 Parts 35 | 5 29 1 Haulers Intercepted . | . . . Recyclers Shooed . | . . . Parts Field Recycled . | . . . Retrieved Matter . | . . . Parts Self-Destructed . | . . . Prevented . | . . . Kills | -11 -10 -10 ------- Run | Yrd Mat Min Combat Hostiles Destroyed 13 | . 12 1 Guns 11 | . 10 1 Cannons 2 | . 2 . Classes Destroyed 4 | 1 3 . Worker 1 | . 1 . Tunneler 2 | 2 . . Swarmer 4 | . 3 1 Grunt 9 | . 9 . Best Kill Streak 6 | 2 6 1 Combat Bots Only 5 | . 5 1 Max Kills in Single Turn 1 | 1 1 1 Gunslinging . | . . . Exploded . | . . . Melee . | . . . Uniques/NPCs Destroyed . | . . . Combat | -11 -10 -10 -------- Run | Yrd Mat Min Hostile Shots Fired 128 | . 89 39 Missed 29 | . 22 7 Damage Taken 981 | . 731 250 Core 258 | . 183 75 Absorbed by Shields . | . . . Core Remaining (%) 100 | 100 . . Volleys Fired 55 | 7 43 5 Largest 2 | 2 2 2 Hottest 80 | 70 80 80 Shots Fired 105 | 14 81 10 Gun 96 | 14 77 5 Cannon 9 | . 4 5 Launcher . | . . . Special . | . . . Kinetic 55 | 7 43 5 Thermal 50 | 7 38 5 Explosive . | . . . Electromagnetic . | . . . Robot Hit Streak 8 | 5 8 5 Robot Miss Streak 5 | 2 5 3 Penetration Max . | . . . Secondary Targets . | . . . Shots Hit Robots 62 | 9 49 4 Core Hits 30 | 3 24 3 Critical Kills . | . . . Critical Parts Destroyed . | . . . Critical Strikes 2 | 1 1 . Burn 2 | 1 1 . Melee Attacks . | . . . Impact . | . . . Slashing . | . . . Piercing . | . . . Sneak Attacks . | . . . Combat Hostiles . | . . . Follow-up Attacks . | . . . Damage Inflicted 700 | 109 515 76 Guns 628 | 109 480 39 Cannons 72 | . 35 37 Explosions . | . . . Melee . | . . . Ramming . | . . . Kinetic 295 | 33 223 39 Thermal 405 | 76 292 37 Explosive . | . . . Electromagnetic . | . . . Impact . | . . . Slashing . | . . . Piercing . | . . . Highest Corruption . | . . . Average Corruption . | . . . Corruption Purged . | . . . Corruption Blocked . | . . . Overload Shots . | . . . Overflow Damage . | . . . Projectiles . | . . . Explosions . | . . . Melee . | . . . Knockbacks . | . . . Impact . | . . . Kinetic . | . . . Secondary . | . . . Self-Inflicted Damage . | . . . Shots . | . . . Rammed . | . . . Targets Rammed . | . . . Kicked . | . . . Crushed . | . . . Highest Temperature 152 | 60 152 100 Average Temperature 51 | 27 54 60 Received Heat Transfer 339 | . 339 . Siege Activations . | . . . Robots Corrupted . | . . . Combat Hostiles . | . . . Parts Fried . | . . . Impact Corruptions . | . . . Robots Melted . | . . . Combat Hostiles . | . . . Parts Melted . | . . . Heat Transferred 1258 | 296 888 74 Parts Sabotaged . | . . . Parts Stolen . | . . . Parts Stripped . | . . . Power Chain Reactions . | . . . Alert | -11 -10 -10 ------- Run | Yrd Mat Min Peak Influence 247 | 10 247 64 Initial 54 | . 6 54 Average 141 | 2 163 54 Maximum Alert Level 1 | . 1 . Low Security (%) 63 | 100 57 100 Level 1 36 | . 42 . Level 2 . | . . . Level 3 . | . . . Level 4 . | . . . Level 5 . | . . . High Security . | . . . Max Security . | . . . Squads Dispatched 3 | . 3 . Investigation 1 | . 1 . Extermination . | . . . Reinforcement 2 | . 2 . Assault . | . . . Garrison . | . . . Intercept . | . . . Searches Triggered . | . . . Construction Impeded . | . . . Haulers Reinforced . | . . . Active Scanning Responses . | . . . Cargo Convoy Interrupts . | . . . Stealth | -11 -10 -10 --------- Run | Yrd Mat Min Distress Signals 3 | . 3 . Communications Jammed . | . . . Distress Signals . | . . . Times Spotted 25 | . 19 6 Peak Tracking Total 6 | . 6 6 Tactical Retreats 1 | . 1 . Traps | -11 -10 -10 ------- Run | Yrd Mat Min Traps Triggered 1 | . 1 . Indirectly . | . . . Trap Hack Attempts . | . . . Triggered . | . . . Disarmed . | . . . Reprogrammed . | . . . Reused . | . . . Traps Extracted . | . . . Installed . | . . . Triggered . | . . . Machines | -11 -10 -10 ---------- Run | Yrd Mat Min Machines Disabled . | . . . Max in Single Turn . | . . . Machines Repaired . | . . . Machines Dismantled . | . . . Machines Sabotaged . | . . . Overloaded Fab Kills . | . . . Hacking | -11 -10 -10 --------- Run | Yrd Mat Min Machines Accessed 4 | . 4 . Terminals 4 | . 4 . Fabricators . | . . . Repair Stations . | . . . Recycling Units . | . . . Scanalyzers . | . . . Garrison Access . | . . . Total Hacks 12 | . 12 . Successful 7 | . 7 . Failed 5 | . 5 . Catastrophic . | . . . Database Lockouts . | . . . Manual 8 | . 8 . Terminals 12 | . 12 . Fabricators . | . . . Repair Stations . | . . . Recycling Units . | . . . Scanalyzers . | . . . Garrison Access . | . . . Terminal Hacks 6 | . 6 . Robot Analysis 4 | . 4 . Prototype ID Bank 2 | . 2 . Fabricator Hacks . | . . . Repair Station Hacks . | . . . Recycling Unit Hacks . | . . . Scanalyzer . | . . . Garrison Access Hacks . | . . . Unauthorized Hacks 1 | . 1 . Terminals 1 | . 1 . Botnet 1 | . 1 . Fabricators . | . . . Repair Stations . | . . . Recycling Units . | . . . Scanalyzers . | . . . Garrison Access . | . . . Data Cores Recovered . | . . . Used . | . . . Hacking Detections 4 | . 4 . Full Trace Events . | . . . Feedback Events . | . . . Feedback Blocked . | . . . Robot Schematics Acquired . | . . . Robots Built . | . . . Authchips . | . . . Time . | . . . Total Robot Build Rating . | . . . Part Schematics Acquired . | . . . Parts Built . | . . . Authchips . | . . . Time . | . . . Total Part Build Rating . | . . . Parts Repaired . | . . . Time . | . . . Parts Recycled . | . . . Recycled Matter . | . . . Retrieved Matter . | . . . Retrieved Components . | . . . Parts Scanalyzed . | . . . Part Schematics Acquired . | . . . Parts Damaged . | . . . Bothacking | -11 -10 -10 ------------ Run | Yrd Mat Min Used RIF Installer . | . . . Robots Hacked . | . . . Non-combat . | . . . Combat . | . . . Robot Hacks Applied . | . . . Relay Couplers Released . | . . . Fabnet Peak Effective % . | . . . Robots Rewired . | . . . Allies Hacked . | . . . Hacks Repelled . | . . . Allies | -11 -10 -10 -------- Run | Yrd Mat Min Total Allies . | . . . Largest Group . | . . . Highest-Rated Group . | . . . Highest-Rated Ally . | . . . Total Orders . | . . . Ally Attacks . | . . . Total Damage . | . . . Kills . | . . . Allies Corrupted . | . . . Allies Melted . | . . . Intel | -11 -10 -10 ------- Run | Yrd Mat Min Robot Analysis Total 4 | . 4 . Derelict Logs Recovered . | . . . Drone Launches . | . . . Drone Recoveries . | . . . Exploration | -11 -10 -10 ------------- Run | Yrd Mat Min Turns Passed 665 | 85 567 13 Spaces Moved 387 | 54 333 . Core 8 | 8 . . Treads . | . . . Legs . | . . . Wheels 379 | 46 333 . Hover . | . . . Flight . | . . . Fastest Speed 50 | 50 90 . Average Speed 116 | 84 121 . Slowest Speed 140 | 90 140 . Overloaded Moves . | . . . Propulsion Burnouts . | . . . Robots Hopped . | . . . Cave-ins Triggered . | . . . Exploration Rate (%) 30 | 4 81 5 Regions Visited 2 Branch Regions 1 Pre-discovered Areas . | . . . Known Exits Taken . | . . . Unknown Exits Taken 2 | 1 1 . Scrap Searched . | . . . Spaces Dug . | . . . Terrain Destroyed . | . . . Melee . | . . . Projectile . | . . . AOE . | . . . Terrain Rammed . | . . . Walls Destroyed . | . . . Machines Disabled . | . . . Actions | -11 -10 -10 --------- Run | Yrd Mat Min Total 508 | 80 423 5 Wait 22 | . 22 . Move 385 | 53 332 . Hop . | . . . Pick Up 25 | 13 12 . Fast Attach . | . . . Attach 11 | 7 4 . Detach . | . . . Swap 6 | . 6 . Drop 4 | . 4 . Fire 55 | 7 43 5 Melee . | . . . Ram . | . . . Kick . | . . . Crush . | . . . Escape Stasis . | . . . Rewire . | . . . Trap . | . . . Miscellaneous . | . . . Route ------- -11/Scrapyard -10/Materials (discovered 3 exits: [*Mat] / [*Min x2]) -10/Mines History --------- Turn | Location | Event 14 | -11/Scrapyard | Discovered new exit (range 15) 86 | -11/Scrapyard | Entered Materials 309 | -10/Materials | Build established: Mutant 335 | -10/Materials | Discovered new exit (range 15) 389 | -10/Materials | Discovered new exit (range 9) 426 | -10/Materials | Discovered new exit (range 8) 502 | -10/Materials | Core integrity fell below 50% 536 | -10/Materials | Lost 4 parts (1p2n1w) 653 | -10/Materials | Entered Mines 660 | -10/Mines | Core integrity fell below 20% 666 | -10/Mines | Destroyed by S-10 Pest with Light Assault Rifle Last Messages --------------- within their range, thereby essentially cloaking other robots within their area of influence from hostile scans. Triggered Alarm Trap. An alarm sounds. ALERT: Alarm triggered, dispatching investigation squad. R-06 Scavenger inserts Flight Unit into recycling unit. R-06 Scavenger inserts Lgt. Assault Rifle into recycling unit. R-06 Scavenger inserts Ion Engine into recycling unit. R-06 Scavenger inserts Aluminum Leg into recycling unit. Acquired Mining Laser. LOCATION=UNKNOWN GOAL=ESCAPE S-10 Pest destroyed. Wheel destroyed. Map ----- +----------------------------------------------------+ | ?????????????????????????????????????????????????? | | ?????????????????????????????????????????????????? | | ?????????????????????????????????????????????????? | | ?????????????????????????????????????????????????? | | ?????????????????????????????????????????????????? | | ?????????????????????????????????????????????????? | | ?????????????????????????????????????????????????? | | ?????????????????????????????????????????????????? | | ?????????????????????????????????????????????????? | | ?????????????????????????????????????????????????? | | ?????????????????????????????????????????????????? | | ?????????????????????????????????????????????????? | | ?????????????????????????????????????????????????? | | ?????????????????????????????????????????????????? | | ?????????????????????????????????????????????????? | | ?????????????????????######??????????????????????? | | ?????????????????????#######?????????????????????? | | ?????????????????????## ##?????????????????????? | | ?????????????????????# #?????????????????????? | | ??????????????????????? s #?????????????????????? | | ?????????????????????? % ##?????????????????????? | | ?????????????????????? #[s##?????????????????????? | | ?????????????????????### ###????????????????????? | | ???????????????????##### #########??????????????? | | ???????????????????#### ########??????????????? | | ??????????????????### @=% ????????? | | ??????????????????## s s ????????? | | ??????????????????## ###########??????????? | | ??????????????????### ###########??????????? | | ??????????????????#### ###???????????????????? | | ???????????????????#### ###???????????????????? | | ????????????????????#### #????????????????????? | | ?????????????????????### ?????????????????????? | | ??????????????????????## #???????????????????? | | ??????????????????????### ##???????????????????? | | ??????????????????????### ####???????????????????? | | ????????????????????????? ####???????????????????? | | ????????????????????????? ???????????????????????? | | ????????????????????????? ???????????????????????? | | ????????????????????????# ??????????????????????? | | ????????????????????????###??????????????????????? | | ????????????????????????###??????????????????????? | | ?????????????????????????????????????????????????? | | ?????????????????????????????????????????????????? | | ?????????????????????????????????????????????????? | | ?????????????????????????????????????????????????? | | ?????????????????????????????????????????????????? | | ?????????????????????????????????????????????????? | | ?????????????????????????????????????????????????? | | ?????????????????????????????????????????????????? | +----------------------------------------------------+ Best States ------------- Heat Dissipation 25 Energy Generation 10 Energy Capacity 250 Matter Stores 300 Matter Capacity 300 Sight Range 16 Terrain Scan Range 16 Terrain Scan Density 10 Evasion (%) 50 Recoil Reduction 2 Item Schematics ----------------- None Robot Schematics ------------------ None Fabricated ------------ Nothing Alien Tech Used ----------------- None Achievements -------------- None Challenges ------------ None Game ------ Seed ForceNeutrinoPurifier Manual? 0 Play Time 00:07:07 Cumulative 161.1 hours Start 2024.08.17 @ 21:27:48 End 2024.08.17 @ 21:34:43 Sessions 1 Manual Loads 0 Difficulty Rogue Special Mode None Game No. 149 Rogue 140 Adventurer 9 Explorer 0 Win Type - Total 0 Types 0/0/0/0/0/0/0/0/0 Lore% 64 Gallery% 66 Achievement% 52 Wizard Run 0 Options --------- Layout 1 ASCII 0 Keyboard 0 Movement Numpad Keybinds 0 Fullscreen 1 Font 24/Smallcaps Map View 50x35 Zoom Use 0% Tactical HUD 0 Map Filters NONE Filters NONE Steam 1 RUN: cd0ba4a5-cb91-48e5-9a0f-89b5cbadf0e1